fUST/lending_fUST_20251113
["ID","MTS","AMOUNT","RATE_DAILY","PERIOD"]
[393865540,1763047847386,-355.95,0.00037961,2]
[393865541,1763047847396,-1702.0,0.00039133,3]
[393865542,1763047847405,-155.323319,0.00039316,20]
[393865543,1763047847419,-339.0,0.00039337,120]
[393865544,1763047847430,-199.999999,0.0004,2]
[393865545,1763047847441,-474.6,0.00040943,2]
[393865546,1763047847451,-155.323319,0.0004108,5]
[393865547,1763047847460,-366.0,0.00041337,120]
[393865548,1763047847470,-155.323319,0.00041548,20]
[393865549,1763047847480,-181.0,0.00041616,120]
[393865550,1763047847489,-181.0,0.00041882,7]
[393865551,1763047847500,-168.0,0.00041895,2]
[393865552,1763047847509,-168.0,0.00042059,2]
[393865553,1763047847519,-155.323319,0.00042072,31]
[393865554,1763047847665,-168.0,0.00042386,2]
[393865555,1763047847674,-181.0,0.00042433,2]
[393865556,1763047847684,-168.0,0.00042557,2]
[393865557,1763047847693,-753.21,0.000426,14]
[393865558,1763047847703,-181.0,0.0004282,2]
[393865559,1763047847713,-181.0,0.00042904,7]
[393865560,1763047847723,-181.0,0.00043093,7]
[393865561,1763047847732,-162.64,0.000431,30]
[393865562,1763047847741,-181.0,0.00043322,120]
[393865563,1763047847751,-384.60684396,0.00043337,120]
[393865564,1763047847761,-600.58196544,0.00043435,2]
[393865565,1763047847771,-181.0,0.00043454,2]
[393865566,1763047847780,-5659.65938833,0.00043523,3]
[393865567,1763047847790,-2243.40088242,0.0004353,2]
[393865568,1763047847799,-397749.16034057,0.00043533,2]
[393865569,1763048028892,150.0,0.0003287,120]
[393865570,1763048045764,215.602514,0.00013699,2]
[393865571,1763048045978,215.602514,0.00020187,2]
[393865572,1763048046539,150.0,0.0003287,120]
[393865575,1763048206387,150.0,0.000249,2]
[393865576,1763048210321,150.0,0.000249,2]
[393865577,1763048280592,182.06,0.00018631,2]
[393865578,1763048280878,182.06,0.00018631,2]
[393865579,1763048281176,182.06,0.00018631,2]
[393865608,1763048531003,690.83,0.00037833,30]
[393865614,1763048843345,202.30727714,0.00022675,2]
[393865617,1763048878202,4346.89,0.0002528,3]
[393865618,1763048893684,205.55326787,0.00022675,2]
[393865619,1763048898095,-150.0,0.00025229,2]
[393865620,1763048898119,-200.0,0.000253,2]
[393865621,1763048903511,-215.602514,0.00026676,2]
[393865622,1763048910155,-320.1595597,0.00027966,2]
[393865623,1763048915275,-229.407525,0.00028109,2]
[393865624,1763048915303,-300.0,0.00028281,2]
[393865625,1763048915329,-300.0,0.00028281,2]
[393865626,1763048915357,-1200.0,0.00028281,2]
[393865627,1763048915385,-300.0,0.00028281,2]
[393865628,1763048915411,-8959.8980652,0.00028282,2]
[393865629,1763048915440,-1012.4794604,0.00028796,3]
[393865631,1763048925433,-1157.7121622,0.00030601,38]
[393865632,1763048925464,-913.26267137,0.00030857,2]
[393865633,1763048925495,-500.0,0.00030866,2]
[393865634,1763048925522,-490.45024528,0.00030866,2]
[393865635,1763048925548,-531.94167405,0.00030866,4]
[393865636,1763048925587,-320.63109064,0.00030867,2]
[393865637,1763048925613,-500.0,0.00030867,2]
[393865638,1763048925640,-500.0,0.00030867,2]
[393865639,1763048925670,-531.65505613,0.00030867,2]
[393865640,1763048925697,-500.0,0.00030867,2]
[393865641,1763048925724,-538.35770409,0.00030867,2]
[393865642,1763048925754,-531.65505613,0.00030867,2]
[393865643,1763048925779,-476.49649943,0.00030867,2]
[393865644,1763048925806,-500.0,0.00030867,2]
[393865645,1763048925834,-531.65505613,0.00030867,2]
[393865646,1763048925859,-500.0,0.00030867,2]
[393865647,1763048925888,-531.65505613,0.00030867,2]
[393865648,1763048925917,-531.65505613,0.00030867,2]
[393865649,1763048925945,-500.0,0.00030867,2]
[393865650,1763048925978,-531.65505613,0.00030867,2]
[393865651,1763048926006,-500.0,0.00030867,2]
[393865652,1763048926034,-531.65505613,0.00030867,2]
[393865653,1763048926059,-500.0,0.00030867,2]
[393865654,1763048926086,-531.65505613,0.00030867,2]
[393865655,1763048926111,-500.0,0.00030867,2]
[393865656,1763048926139,-531.65505613,0.00030867,2]
[393865657,1763048926168,-500.0,0.00030867,2]
[393865658,1763048926196,-531.65505613,0.00030867,2]
[393865659,1763048926222,-500.0,0.00030867,2]
[393865660,1763048926251,-531.65505613,0.00030867,2]
[393865661,1763048926276,-500.0,0.00030867,2]
[393865662,1763048926307,-531.65505613,0.00030867,2]
[393865663,1763048926332,-500.0,0.00030867,2]
[393865664,1763048926361,-531.65505613,0.00030867,2]
[393865665,1763048926386,-500.0,0.00030867,2]
[393865666,1763048926415,-531.65505613,0.00030867,2]
[393865667,1763048926442,-500.0,0.00030867,2]
[393865668,1763048926471,-531.65505613,0.00030867,2]
[393865669,1763048926496,-500.0,0.00030867,2]
[393865670,1763048926524,-531.65505613,0.00030867,2]
[393865671,1763048926550,-500.0,0.00030867,2]
[393865672,1763048926581,-531.65505613,0.00030867,2]
[393865673,1763048926610,-531.65505613,0.00030867,2]
[393865674,1763048926641,-531.65505613,0.00030867,2]
[393865675,1763048926671,-531.65505613,0.00030867,2]
[393865676,1763048926698,-500.0,0.00030867,2]
[393865677,1763048926727,-438.04683034,0.00030867,2]
[393865678,1763048930870,-93.60822579,0.00030867,2]
[393865679,1763048930896,-500.0,0.00030867,2]
[393865680,1763048930925,-531.65505613,0.00030867,2]
[393865681,1763048930951,-500.0,0.00030867,2]
[393865682,1763048930981,-531.65505613,0.00030867,2]
[393865683,1763048931007,-500.0,0.00030867,2]
[393865684,1763048931036,-531.65505613,0.00030867,2]
[393865685,1763048931062,-500.0,0.00030867,2]
[393865686,1763048931093,-531.65505613,0.00030867,2]
[393865687,1763048931120,-500.0,0.00030867,2]
[393865688,1763048931149,-531.65505613,0.00030867,2]
[393865689,1763048931176,-500.0,0.00030867,2]
[393865690,1763048931207,-531.65505613,0.00030867,2]
[393865691,1763048931236,-531.65505613,0.00030867,2]
[393865692,1763048931265,-500.0,0.00030867,2]
[393865693,1763048931299,-531.65505613,0.00030867,2]
[393865694,1763048931329,-500.0,0.00030867,2]
[393865695,1763048931363,-531.65505613,0.00030867,2]
[393865696,1763048931392,-500.0,0.00030867,2]
[393865697,1763048931426,-531.65505613,0.00030867,2]
[393865698,1763048931459,-531.65505613,0.00030867,2]
[393865699,1763048931487,-500.0,0.00030867,2]
[393865700,1763048931518,-531.65505613,0.00030867,2]
[393865701,1763048931545,-500.0,0.00030867,2]
[393865702,1763048931582,-531.65505613,0.00030867,2]
[393865703,1763048931621,-531.65505613,0.00030867,2]
[393865704,1763048931652,-531.65505613,0.00030867,2]
[393865705,1763048931679,-500.0,0.00030867,2]
[393865706,1763048931711,-531.65505613,0.00030867,2]
[393865707,1763048931740,-500.0,0.00030867,2]
[393865708,1763048931772,-531.65505613,0.00030867,2]
[393865709,1763048931799,-500.0,0.00030867,2]
[393865710,1763048931831,-531.65505613,0.00030867,2]
[393865711,1763048931863,-500.0,0.00030867,2]
[393865712,1763048931895,-531.65505613,0.00030867,2]
[393865713,1763048931923,-500.0,0.00030867,2]
[393865714,1763048931961,-531.65505613,0.00030867,2]
[393865715,1763048931989,-500.0,0.00030867,2]
[393865716,1763048932018,-500.0,0.00030867,2]
[393865717,1763048932051,-531.65505613,0.00030867,2]
[393865718,1763048932079,-500.0,0.00030867,2]
[393865719,1763048932110,-531.65505613,0.00030867,2]
[393865720,1763048932135,-500.0,0.00030867,2]
[393865721,1763048932166,-531.65505613,0.00030867,2]
[393865722,1763048932195,-500.0,0.00030867,2]
[393865723,1763048932226,-531.65505613,0.00030867,2]
[393865724,1763048932252,-500.0,0.00030867,2]
[393865725,1763048932282,-531.65505613,0.00030867,2]
[393865726,1763048932312,-531.65505613,0.00030867,2]
[393865727,1763048932339,-83.36031483,0.00030867,2]
[393865728,1763048937458,-416.63968517,0.00030867,2]
[393865729,1763048937488,-500.0,0.00030867,2]
[393865730,1763048937516,-500.0,0.00030867,2]
[393865731,1763048937549,-531.65505613,0.00030867,2]
[393865732,1763048937577,-500.0,0.00030867,2]
[393865733,1763048937613,-531.65505613,0.00030867,2]
[393865734,1763048937642,-500.0,0.00030867,2]
[393865735,1763048937673,-500.0,0.00030867,2]
[393865736,1763048937704,-500.0,0.00030867,2]
[393865737,1763048937732,-500.0,0.00030867,2]
[393865738,1763048937759,-500.0,0.00030867,2]
[393865739,1763048937785,-500.0,0.00030867,2]
[393865740,1763048937816,-500.0,0.00030867,2]
[393865741,1763048937844,-500.0,0.00030867,2]
[393865742,1763048937872,-500.0,0.00030867,2]
[393865743,1763048937900,-500.0,0.00030867,2]
[393865744,1763048937928,-500.0,0.00030867,2]
[393865745,1763048937955,-500.0,0.00030867,2]
[393865746,1763048937984,-500.0,0.00030867,2]
[393865747,1763048938015,-639.92653684,0.00030867,2]
[393865748,1763048938046,-639.92653684,0.00030867,2]
[393865749,1763048938071,-500.0,0.00030867,2]
[393865750,1763048938097,-500.0,0.00030867,2]
[393865751,1763048938126,-639.92653684,0.00030867,2]
[393865752,1763048938151,-500.0,0.00030867,2]
[393865753,1763048938179,-639.92653684,0.00030867,2]
[393865754,1763048938209,-639.92653684,0.00030867,2]
[393865755,1763048938236,-500.0,0.00030867,2]
[393865756,1763048938264,-500.0,0.00030867,2]
[393865757,1763048938294,-639.92653684,0.00030867,2]
[393865758,1763048938320,-500.0,0.00030867,2]
[393865759,1763048938352,-639.92653684,0.00030867,2]
[393865760,1763048938383,-639.92653684,0.00030867,2]
[393865761,1763048938411,-500.0,0.00030867,2]
[393865762,1763048938442,-639.92653684,0.00030867,2]
[393865763,1763048938469,-500.0,0.00030867,2]
[393865764,1763048938498,-639.92653684,0.00030867,2]
[393865765,1763048938524,-500.0,0.00030867,2]
[393865766,1763048938550,-500.0,0.00030867,2]
[393865767,1763048938583,-639.92653684,0.00030867,2]
[393865768,1763048938610,-500.0,0.00030867,2]
[393865769,1763048938641,-639.92653684,0.00030867,2]
[393865770,1763048938669,-500.0,0.00030867,2]
[393865771,1763048938699,-639.92653684,0.00030867,2]
[393865772,1763048938725,-500.0,0.00030867,2]
[393865773,1763048938755,-639.92653684,0.00030867,2]
[393865774,1763048938783,-61.07868681,0.00030867,2]
[393865775,1763048952219,-438.92131319,0.00030867,2]
[393865776,1763048952248,-639.92653684,0.00030867,2]
[393865777,1763048952274,-500.0,0.00030867,2]
[393865778,1763048952299,-500.0,0.00030867,2]
[393865779,1763048952328,-639.92653684,0.00030867,2]
[393865780,1763048952354,-500.0,0.00030867,2]
[393865781,1763048952384,-639.92653684,0.00030867,2]
[393865782,1763048952411,-500.0,0.00030867,2]
[393865783,1763048952441,-639.92653684,0.00030867,2]
[393865784,1763048952468,-234.12660114,0.00030867,2]
[393865785,1763048952497,-639.92653684,0.00030867,2]
[393865786,1763048952527,-639.92653684,0.00030867,2]
[393865787,1763048952556,-639.92653684,0.00030867,2]
[393865788,1763048952590,-639.92653684,0.00030867,2]
[393865789,1763048952616,-500.0,0.00030867,2]
[393865790,1763048952648,-639.92653684,0.00030867,2]
[393865791,1763048952681,-639.92653684,0.00030867,2]
[393865792,1763048952716,-639.92653684,0.00030867,2]
[393865793,1763048952744,-639.92653684,0.00030867,2]
[393865794,1763048952774,-639.92653684,0.00030867,2]
[393865795,1763048952803,-639.92653684,0.00030867,2]
[393865796,1763048952831,-639.92653684,0.00030867,2]
[393865797,1763048952859,-639.92653684,0.00030867,2]
[393865798,1763048952888,-639.92653684,0.00030867,2]
[393865799,1763048952914,-500.0,0.00030867,2]
[393865800,1763048952939,-500.0,0.00030867,2]
[393865801,1763048952967,-500.0,0.00030867,2]
[393865802,1763048952993,-500.0,0.00030867,2]
[393865803,1763048953019,-500.0,0.00030867,2]
[393865804,1763048953044,-500.0,0.00030867,2]
[393865805,1763048953071,-500.0,0.00030867,2]
[393865806,1763048953100,-641.52635317,0.00030867,2]
[393865807,1763048953125,-500.0,0.00030867,2]
[393865808,1763048953159,-641.52635317,0.00030867,2]
[393865809,1763048953188,-641.52635317,0.00030867,2]
[393865810,1763048953215,-468.35316502,0.00030867,2]
[393865811,1763048953244,-641.52635317,0.00030867,2]
[393865812,1763048953272,-641.52635317,0.00030867,2]
[393865813,1763048953296,-500.0,0.00030867,2]
[393865814,1763048953325,-641.52635317,0.00030867,2]
[393865815,1763048953354,-641.52635317,0.00030867,2]
[393865816,1763048953385,-641.52635317,0.00030867,2]
[393865817,1763048953414,-641.52635317,0.00030867,2]
[393865818,1763048953443,-150.0,0.00032724,2]
[393865819,1763048953486,-56.11061584,0.00033165,2]
[393865820,1763048954131,-159.49189816,0.00033165,2]
[393865821,1763048954152,-160.0,0.00033732,2]
[393865822,1763048954174,-400.28388004,0.00033732,2]
[393865823,1763048954199,-161.0,0.00035,120]
[393865824,1763048954227,-206.3,0.00035699,2]
[393865825,1763048954248,-185.23719112,0.00037833,20]
[393865826,1763048954269,-2000.0,0.00037833,20]
[393865827,1763048954291,-1085.13,0.00038356,120]
[393865828,1763048954311,-1085.13,0.00038356,120]
[393865829,1763048954334,-1085.13,0.00038356,120]
[393865830,1763048954355,-1085.13,0.00038356,120]
[393865831,1763048954375,-1085.13,0.00038356,120]
[393865832,1763048954396,-1085.13,0.00038356,120]
[393865833,1763048954418,-1085.13,0.00038356,120]
[393865834,1763048954441,-1085.13,0.00038356,120]
[393865835,1763048954465,-1085.13,0.00038356,120]
[393865836,1763048954488,-1085.13,0.00038356,120]
[393865837,1763048954509,-1085.13,0.00038356,120]
[393865838,1763048954530,-1085.13,0.00038356,120]
[393865839,1763048954550,-985.04068968,0.00038356,120]
[393865840,1763048970300,209.40437684,0.00030848,2]
[393865841,1763048970959,217.15233878,0.00031396,2]
[393865842,1763048971598,225.18697532,0.00031944,2]
[393865843,1763048972243,233.51889341,0.00032492,2]
[393865844,1763048972891,242.15909246,0.0003304,2]
[393865845,1763048973569,251.11897888,0.00033588,2]
[393865846,1763048974208,260.4103811,0.00034136,2]
[393865847,1763048974830,270.0455652,0.00034684,2]
[393865851,1763049029142,150.0,0.0003269,2]
[393865966,1763049039129,-197.23,0.00035662,2]
[393865968,1763049039139,-151.0,0.00038355,120]
[393865970,1763049039149,-156.587,0.00038355,120]
[393865972,1763049039158,-162.380719,0.00038355,120]
[393865974,1763049039168,-168.3888056,0.00038355,120]
[393865976,1763049039178,-174.61919141,0.00038355,120]
[393865978,1763049039188,-181.08010149,0.00038355,120]
[393865980,1763049039197,-187.78006525,0.00038355,120]
[393865983,1763049039207,-194.72792766,0.00038355,120]
[393865985,1763049039217,-201.93286099,0.00038355,120]
[393865986,1763049039227,-209.40437684,0.00038355,120]
[393865988,1763049039236,-217.15233878,0.00038355,120]
[393865990,1763049039246,-225.18697532,0.00038355,120]
[393865992,1763049039255,-233.51889341,0.00038355,120]
[393865994,1763049039265,-242.15909246,0.00038355,120]
[393865996,1763049039275,-251.11897888,0.00038355,120]
[393865999,1763049039287,-260.4103811,0.00038355,120]
[393866001,1763049039297,-270.0455652,0.00038355,120]
[393866002,1763049039307,-280.03725112,0.00038355,120]
[393866004,1763049039316,-290.39862941,0.00038355,120]
[393866005,1763049039326,-301.1433787,0.00038355,120]
[393866006,1763049039336,-1000.0,0.00038356,120]
[393866007,1763049039346,-1000.0,0.00038356,120]
[393866008,1763049039356,-1000.0,0.00038356,120]
[393866009,1763049039366,-1000.0,0.00038356,120]
[393866010,1763049039376,-1000.0,0.00038356,120]
[393866011,1763049039387,-1000.0,0.00038356,120]
[393866012,1763049039396,-483.61335246,0.00038356,120]
[393866013,1763049039409,-516.38664754,0.00038356,120]
[393866014,1763049039419,-1000.0,0.00038356,120]
[393866015,1763049039429,-1000.0,0.00038356,120]
[393866016,1763049039439,-1000.0,0.00038356,120]
[393866017,1763049039449,-1000.0,0.00038356,120]
[393866018,1763049039459,-1036.62248378,0.00038356,120]
[393866019,1763049039469,-295.84,0.00038634,2]
[393866020,1763049039479,-215.602514,0.00039654,2]
[393866021,1763049039489,-313.7059896,0.00039726,2]
[393866022,1763049039502,-36.85486908,0.00039726,2]
[393866023,1763049039684,-412.6,0.00040842,2]
[393866024,1763049039695,-172.36,0.00040842,2]
[393866025,1763049039708,-172.36,0.00040842,2]
[393866026,1763049039718,-172.36,0.00040842,2]
[393866027,1763049039727,-172.36,0.00040842,2]
[393866028,1763049039737,-172.33,0.00040842,2]
[393866029,1763049039747,-500.0,0.0004126,10]
[393866030,1763049039757,-500.0,0.00041263,10]
[393866031,1763049039767,-501.11099204,0.00041263,10]
[393866032,1763049039777,-500.0,0.00041263,10]
[393866033,1763049039790,-501.92453917,0.00041263,10]
[393866034,1763049039800,-501.72220391,0.00041263,10]
[393866035,1763049039810,-500.0,0.00041263,10]
[393866036,1763049039819,-501.73472042,0.00041263,10]
[393866037,1763049039829,-500.0,0.00041263,10]
[393866038,1763049039839,-503.04693144,0.00041263,10]
[393866039,1763049039848,-150.0,0.00041263,2]
[393866040,1763049039858,-501.69066645,0.0004138,10]
[393866041,1763049039867,-257.7860095,0.0004138,7]
[393866042,1763049039877,-155.323319,0.00041542,20]
[393866043,1763049039887,-394.46,0.00041606,2]
[393866044,1763049039896,-1000.0,0.00041808,10]
[393866045,1763049039906,-1000.0,0.0004181,10]
[393866046,1763049039916,-273.48008825,0.0004181,2]
[393866047,1763049039926,-501.53158293,0.00041883,2]
[393866048,1763049039935,-500.0,0.00041917,10]
[393866049,1763049039944,-500.0,0.00041917,10]
[393866050,1763049039954,-500.0,0.00041917,10]
[393866051,1763049039963,-913.26267137,0.0004198,3]
[393866052,1763049039973,-212.95,0.00042057,15]
[393866053,1763049039983,-502.57410294,0.00042357,10]
[393866054,1763049039992,-1382.44340923,0.00042358,10]
[393866055,1763049040002,-308.41161758,0.00042398,2]
[393866056,1763049040012,-555.14091164,0.00042398,2]
[393866057,1763049040022,-985.93025907,0.00042398,2]
[393866058,1763049040031,-209.34859226,0.00042465,10]
[393866059,1763049040043,-500.0,0.00042762,10]
[393866060,1763049040053,-500.0,0.00042762,10]
[393866061,1763049040063,-2222.31093124,0.00043062,28]
[393866064,1763049040081,-280.0,0.00043119,2]
[393866066,1763049040091,-3277.8156657,0.00043162,2]
[393866068,1763049040100,-2097.0360043,0.00043162,2]
[393866069,1763049040111,-280.0,0.000432,120]
[393866070,1763049040121,-1526.7155,0.0004322,30]
[393866071,1763049040131,-646.8401451,0.0004331,10]
[393866072,1763049040141,-161.0,0.000434,120]
[393866073,1763049040150,-242.488186,0.00043535,110]
[393866074,1763049040160,-267.31917,0.00043635,30]
[393866075,1763049040170,-276.11699005,0.00043635,2]
[393866076,1763049040180,-315.24671207,0.00043635,2]
[393866077,1763049040190,-155.323319,0.00043771,20]
[393866078,1763049040199,-168.0,0.00044263,2]
[393866079,1763049040209,-181.0,0.00044274,2]
[393866080,1763049040218,-181.0,0.0004434,7]
[393866081,1763049040228,-181.0,0.00044368,2]
[393866082,1763049040238,-683.58317167,0.00044383,3]
[393866083,1763049040247,-218.57260726,0.00044383,3]
[393866084,1763049040256,-168.0,0.00044497,2]
[393866086,1763049040266,-600.0,0.00044505,90]
[393866088,1763049040275,-493.07,0.00044578,2]
[393866090,1763049040288,-168.0,0.0004462,2]
[393866091,1763049040297,-181.0,0.00044634,2]
[393866092,1763049040307,-1000.0,0.00044657,90]
[393866093,1763049040316,-5472.31,0.00044657,2]
[393866094,1763049040326,-5469.57,0.00044657,2]
[393866095,1763049040335,-179.9460162,0.00044697,31]
[393866097,1763049040344,-155.323319,0.00044711,5]
[393866099,1763049040354,-280.0,0.00044732,7]
[393866101,1763049040363,-913.26267137,0.0004499,3]
[393866102,1763049040373,-25017.38735126,0.00045,120]
[393866103,1763049040383,-597.0,0.00045,2]
[393866104,1763049040392,-168.0,0.00045073,2]
[393866105,1763049040401,-181.0,0.00045274,2]
[393866106,1763049040411,-181.0,0.00045277,2]
[393866107,1763049040421,-280.0,0.00045279,2]
[393866108,1763049040430,-181.0,0.00045428,2]
[393866109,1763049040440,-181.0,0.00045518,7]
[393866110,1763049040449,-168.0,0.00045523,2]
[393866111,1763049040459,-280.0,0.0004553,2]
[393866112,1763049040469,-280.0,0.00045641,2]
[393866113,1763049040479,-160.52,0.000458,14]
[393866114,1763049040488,-280.0,0.0004589,7]
[393866115,1763049040497,-155.323319,0.00046,20]
[393866116,1763049040507,-160.702859,0.00046,20]
[393866117,1763049040516,-215.602514,0.00046143,2]
[393866119,1763049040525,-591.69,0.0004755,2]
[393866121,1763049040535,-205.75882114,0.00047607,2]
[393866123,1763049040547,-731.3795344,0.0004867,2]
[393866125,1763049040556,-720.0,0.00048955,90]
[393866127,1763049040565,-155.323319,0.00049605,5]
[393866129,1763049040574,-163.1928326,0.00049899,2]
[393866131,1763049040585,-2882.43020558,0.0005,120]
[393866133,1763049040595,-690.3,0.00050522,2]
[393866135,1763049040605,-161.0,0.000518,120]
[393866136,1763049040617,-215.602514,0.00052632,2]
[393866139,1763049040626,-788.91,0.00053494,2]
[393866140,1763049040636,-864.0,0.00053851,120]
[393866143,1763049040647,-155.323319,0.000545,5]
[393866144,1763049040656,-913.26267137,0.00054684,4]
[393866146,1763049040666,-22079.0,0.00054694,120]
[393866149,1763049040677,-10000.0,0.00054694,2]
[393866151,1763049040687,-2090.46,0.000547,14]
[393866153,1763049040697,-155.323319,0.00054718,2]
[393866155,1763049040706,-913.26267137,0.00054784,4]
[393866157,1763049040715,-372.79532289,0.00054794,120]
[393866159,1763049040724,-165.84118612,0.00054794,120]
[393866161,1763049040733,-500.0,0.00054794,120]
[393866162,1763049040743,-245.13163792,0.00054794,120]
[393866164,1763049040752,-500.0,0.00054794,120]
[393866166,1763049040761,-500.0,0.00054794,120]
[393866168,1763049040771,-306.89128245,0.00054794,120]
[393866171,1763049040780,-500.0,0.00054794,120]
[393866172,1763049040792,-500.0,0.00054794,120]
[393866174,1763049040802,-370.47619779,0.00054794,120]
[393866176,1763049040812,-290.76886924,0.00054794,120]
[393866179,1763049040821,-415.93554787,0.00054794,120]
[393866181,1763049040830,-500.0,0.00054794,120]
[393866183,1763049040840,-500.0,0.00054794,120]
[393866185,1763049040849,-500.0,0.00054794,120]
[393866187,1763049040858,-500.0,0.00054794,120]
[393866189,1763049040867,-500.0,0.00054794,120]
[393866191,1763049040877,-500.0,0.00054794,120]
[393866193,1763049040886,-344.06123432,0.00054794,120]
[393866195,1763049040895,-256.4620843,0.00054794,120]
[393866197,1763049040904,-500.0,0.00054794,120]
[393866199,1763049040913,-500.0,0.00054794,120]
[393866201,1763049040922,-500.0,0.00054794,120]
[393866203,1763049040931,-500.0,0.00054794,120]
[393866205,1763049040942,-249.845547,0.00054794,120]
[393866207,1763049040951,-500.0,0.00054794,120]
[393866209,1763049040961,-500.0,0.00054794,120]
[393866211,1763049040970,-500.0,0.00054794,120]
[393866213,1763049040979,-500.0,0.00054794,120]
[393866215,1763049040988,-500.0,0.00054794,120]
[393866216,1763049040997,-1000.0,0.00054794,2]
[393866218,1763049041006,-578.65819742,0.00054794,120]
[393866220,1763049041015,-500.0,0.00054794,120]
[393866222,1763049041024,-500.0,0.00054794,120]
[393866224,1763049041032,-500.0,0.00054794,120]
[393866226,1763049041046,-500.0,0.00054794,120]
[393866228,1763049041056,-500.0,0.00054794,120]
[393866230,1763049041065,-500.0,0.00054794,120]
[393866232,1763049041075,-500.0,0.00054794,120]
[393866233,1763049041085,-500.0,0.00054794,120]
[393866235,1763049041094,-500.0,0.00054794,120]
[393866238,1763049041104,-500.0,0.00054794,120]
[393866240,1763049041114,-500.0,0.00054794,120]
[393866241,1763049041123,-500.0,0.00054794,120]
[393866243,1763049041132,-500.0,0.00054794,120]
[393866245,1763049041141,-500.0,0.00054794,120]
[393866247,1763049041150,-500.0,0.00054794,120]
[393866249,1763049041159,-500.0,0.00054794,120]
[393866251,1763049041168,-500.0,0.00054794,120]
[393866253,1763049041177,-500.0,0.00054794,120]
[393866255,1763049041186,-500.0,0.00054794,120]
[393866257,1763049041195,-500.0,0.00054794,120]
[393866259,1763049041204,-500.0,0.00054794,120]
[393866261,1763049041213,-500.0,0.00054794,120]
[393866263,1763049041222,-500.0,0.00054794,120]
[393866265,1763049041232,-500.0,0.00054794,120]
[393866267,1763049041241,-500.0,0.00054794,120]
[393866269,1763049041250,-500.0,0.00054794,120]
[393866271,1763049041259,-500.0,0.00054794,120]
[393866273,1763049041268,-500.0,0.00054794,120]
[393866275,1763049041277,-500.0,0.00054794,120]
[393866277,1763049041290,-500.0,0.00054794,120]
[393866279,1763049041299,-500.0,0.00054794,120]
[393866281,1763049041308,-500.0,0.00054794,120]
[393866283,1763049041317,-500.0,0.00054794,120]
[393866285,1763049041326,-500.0,0.00054794,120]
[393866287,1763049041335,-500.0,0.00054794,120]
[393866289,1763049041344,-500.0,0.00054794,120]
[393866291,1763049041353,-500.0,0.00054794,120]
[393866292,1763049041362,-500.0,0.00054794,120]
[393866294,1763049041371,-500.0,0.00054794,120]
[393866296,1763049041380,-500.0,0.00054794,120]
[393866298,1763049041391,-500.0,0.00054794,14]
[393866300,1763049041401,-500.0,0.00054794,120]
[393866302,1763049041410,-500.0,0.00054794,120]
[393866304,1763049041420,-500.0,0.00054794,120]
[393866306,1763049041429,-513.70329125,0.00054794,120]
[393866308,1763049041439,-500.0,0.00054794,120]
[393866310,1763049041448,-500.0,0.00054794,120]
[393866312,1763049041456,-500.0,0.00054794,120]
[393866314,1763049041465,-500.0,0.00054794,120]
[393866316,1763049041475,-500.0,0.00054794,120]
[393866318,1763049041484,-293.13642005,0.00054794,120]
[393866322,1763049041510,-400.28388004,0.00040842,2]
[393866324,1763049041519,-206.86357995,0.00054794,120]
[393866326,1763049041528,-500.0,0.00054794,120]
[393866328,1763049041539,-500.0,0.00054794,120]